Cogmind - Beta 10.1 @@@ ROGUE MODE // 2020.09.26 @ 22:22:55 Player: URUKi Result: Destroyed by D-53 Grenadier with Mini Grenade Launcher Performance ------------- Evolutions (0) 0 Regions Visited (2) 400 Robots Destroyed (10) 50 Value Destroyed (68) 68 Prototype IDs (0) 0 Alien Tech Used (0) 0 Bonus (0) 0 TOTAL SCORE: 518 Bonus ------- None Cogmind --------- Core Integrity 0/250 Matter 297/300 Energy 100/100 System Corruption 9% Temperature Cool (0) Movement Core (100) Ox1 Location -10/Mines Parts ------- > --- POWER (1) -------- (None) > --- PROPULSION (2) --- (None) > --- UTILITY (2) ------ Small Storage Unit > --- WEAPON (2) ------- (None) > --- INVENTORY (6) ---- (None) Peak State ------------ > --- POWER ------------ Ion Engine > --- PROPULSION ------- Light Treads Light Treads > --- UTILITY ---------- Small Storage Unit > --- WEAPON ----------- Small Laser Assault Rifle > --- INVENTORY -------- Light Ion Engine Light Assault Rifle [Rating: 6] Favorites ----------- Power Ion Engine Engine Ion Engine Propulsion Light Treads Treads Light Treads Leg Aluminum Leg Flight Unit Flight Unit Utility Small Storage Unit Storage Small Storage Unit Weapon Assault Rifle Energy Gun Small Laser Ballistic Gun Assault Rifle Ballistic Cannon Light Cannon Build | -11 -10 -10 ------- Run | Scr Mat Min Slots Evolved . | . . . Power . | . . . Propulsion . | . . . Utility . | . . . Weapon . | . . . Parts Attached 19 | 7 2 10 Power 4 | 2 . 2 Engine 4 | 2 . 2 Core . | . . . Reactor . | . . . Propulsion 7 | 3 . 4 Treads 3 | 2 . 1 Leg 1 | 1 . . Wheel . | . . . Hover . | . . . Flight 3 | . . 3 Utility 1 | 1 . . Device . | . . . Storage 1 | 1 . . Processor . | . . . Hackware . | . . . Protection . | . . . Artifact . | . . . Weapon 7 | 1 2 4 Energy Gun 1 | 1 . . Energy Cannon . | . . . Ballistic Gun 5 | . 2 3 Ballistic Cannon 1 | . . 1 Launcher . | . . . Special Weapon . | . . . Impact Weapon . | . . . Slashing Weapon . | . . . Piercing Weapon . | . . . Special Melee Weapon . | . . . Unidentified Prototypes . | . . . Parts Lost 13 | . 1 12 Power 3 | . . 3 Propulsion 4 | . . 4 Utility . | . . . Weapon 6 | . 1 5 Highest Loss Streak 4 | . 1 4 Average Slot Usage (%) 67 | . 82 58 Engine 11 | . 14 10 Treads 12 | . 28 2 Flight 2 | . . 3 Storage 14 | . 14 14 Energy Gun 4 | . 12 . Ballistic Gun 20 | . 12 25 Naked Turns . | . . . Heaviest Build 12 | 10 12 12 Greatest Support 3 | 3 3 3 Greatest Overweight (x) 3 | 3 3 3 Average Overweight (x) 2 | 1 3 2 Largest Inventory Capacity 6 | 6 6 6 Average Capacity 5 | 5 6 6 Most Carried 4 | 4 3 3 Average Carried 1 | 1 2 . Final Capacity 6 | 6 6 6 Final Carried 3 | 3 1 . Class Distribution -------------------- 100% | Mutant Dominant Class ---------------- Mutant | -10/Materials Mutant | -10/Mines Resources | -11 -10 -10 ----------- Run | Scr Mat Min Matter Collected 404 | 108 32 264 Remotely . | . . . Salvage Created 181 | 37 32 112 Parts 8 | 3 . 5 Haulers Intercepted . | . . . Recyclers Shooed . | . . . Parts Field Recycled . | . . . Retrieved Matter . | . . . Parts Self-Destructed . | . . . Prevented . | . . . Kills | -11 -10 -10 ------- Run | Scr Mat Min Combat Hostiles Destroyed 8 | . 1 7 Guns 8 | . 1 7 Classes Destroyed 4 | 1 1 2 Tunneler 2 | 2 . . Swarmer 2 | . . 2 Grunt 1 | . 1 . Assembled 5 | . . 5 Best Kill Streak 5 | 1 1 5 Combat Bots Only 5 | . 1 5 Max Kills in Single Turn 1 | 1 1 1 Gunslinging . | . . . Exploded . | . . . Melee . | . . . Uniques/NPCs Destroyed . | . . . Combat | -11 -10 -10 -------- Run | Scr Mat Min Damage Taken 1293 | 2 180 1111 Core 274 | . 21 253 Absorbed by Shields . | . . . Core Remaining (%) 100 | 100 . . Volleys Fired 51 | 5 16 30 Largest 2 | 1 1 2 Hottest 40 | 40 40 40 Shots Fired 68 | 5 16 47 Gun 66 | 5 16 45 Cannon 2 | . . 2 Launcher . | . . . Special . | . . . Kinetic 54 | . 7 47 Thermal 14 | 5 9 . Explosive . | . . . Electromagnetic . | . . . Robot Hit Streak 4 | 1 4 4 Robot Miss Streak 4 | 2 2 4 Penetration Max . | . . . Secondary Targets 2 | . . 2 Max Gunslinging Chain 1 | . . 1 Shots Hit Robots 33 | 1 10 22 Core Hits 19 | 2 2 15 Critical Hits 1 | . . 1 Critical Kills 1 | . . 1 Critical Parts Destroyed . | . . . Melee Attacks . | . . . Impact . | . . . Slashing . | . . . Piercing . | . . . Sneak Attacks . | . . . Combat Hostiles . | . . . Follow-up Attacks . | . . . Damage Inflicted 383 | 36 112 235 Guns 348 | 32 109 207 Cannons 16 | . . 16 Explosions . | . . . Melee . | . . . Ramming 19 | 4 3 12 Kinetic 269 | . 46 223 Thermal 95 | 32 63 . Explosive . | . . . Electromagnetic . | . . . Impact . | . . . Slashing . | . . . Piercing . | . . . Highest Corruption 9 | . . 9 Average Corruption 8 | . . 8 Corruption Purged . | . . . Effects 12 | . . 12 Message Errors 3 | . . 3 Matter Fused 3 | . . 3 Heat Flow Errors 2 | . . 2 Energy Discharges 2 | . . 2 Data Loss (minor) 1 | . . 1 Misfires 1 | . . 1 Overload Shots . | . . . Overflow Damage . | . . . Projectiles . | . . . Explosions . | . . . Melee . | . . . Knockbacks . | . . . Impact . | . . . Kinetic . | . . . Secondary . | . . . Self-Inflicted Damage 9 | 2 1 6 Shots . | . . . Rammed 9 | 3 2 4 Targets Rammed 9 | 3 2 4 Kicked . | . . . Crushed . | . . . Highest Temperature 227 | . 1 227 Average Temperature 84 | . 1 105 Received Heat Transfer 129 | . 96 33 Siege Activations . | . . . Robots Corrupted . | . . . Combat Hostiles . | . . . Parts Fried . | . . . Impact Corruptions . | . . . Robots Melted . | . . . Combat Hostiles . | . . . Parts Melted 1 | . 1 . Heat Transferred 225 | 75 150 . Parts Sabotaged . | . . . Parts Stolen . | . . . Parts Stripped . | . . . Power Chain Reactions . | . . . Missiles Intercepted . | . . . Alert | -11 -10 -10 ------- Run | Scr Mat Min Peak Influence 64 | 10 36 64 Initial 9 | . 6 9 Average 12 | 2 21 10 Maximum Alert Level . | . . . Low Security (%) 100 | 100 100 100 Level 1 . | . . . Level 2 . | . . . Level 3 . | . . . Level 4 . | . . . Level 5 . | . . . High Security . | . . . Max Security . | . . . Squads Dispatched 3 | . 3 . Investigation 1 | . 1 . Extermination . | . . . Reinforcement 2 | . 2 . Assault . | . . . Garrison . | . . . Intercept . | . . . Construction Impeded . | . . . Haulers Reinforced . | . . . Stealth | -11 -10 -10 --------- Run | Scr Mat Min Distress Signals . | . . . Communications Jammed . | . . . Distress Signals . | . . . Times Spotted 16 | . 4 12 Peak Tracking Total 4 | . 4 4 Tactical Retreats . | . . . Traps | -11 -10 -10 ------- Run | Scr Mat Min Traps Triggered 1 | . 1 . Indirectly . | . . . Trap Hack Attempts . | . . . Triggered . | . . . Disarmed . | . . . Reprogrammed . | . . . Reused . | . . . Traps Extracted . | . . . Installed . | . . . Triggered . | . . . Machines | -11 -10 -10 ---------- Run | Scr Mat Min Machines Disabled . | . . . Max in Single Turn . | . . . Machines Sabotaged . | . . . Garrisons Compromised . | . . . Overloaded Fab Kills . | . . . Fab Network Shutdowns . | . . . Hacking | -11 -10 -10 --------- Run | Scr Mat Min Machines Accessed 2 | . 2 . Terminals 2 | . 2 . Fabricators . | . . . Repair Stations . | . . . Recycling Units . | . . . Scanalyzers . | . . . Garrison Access . | . . . Total Hacks 3 | . 3 . Successful 3 | . 3 . Failed . | . . . Catastrophic . | . . . Database Lockouts . | . . . Manual . | . . . Terminals 3 | . 3 . Fabricators . | . . . Repair Stations . | . . . Recycling Units . | . . . Scanalyzers . | . . . Garrison Access . | . . . Terminal Hacks 3 | . 3 . Record 2 | . 2 . Zone Layout 1 | . 1 . Fabricator Hacks . | . . . Repair Station Hacks . | . . . Recycling Unit Hacks . | . . . Scanalyzer . | . . . Garrison Access Hacks . | . . . Unauthorized Hacks . | . . . Terminals . | . . . Fabricators . | . . . Repair Stations . | . . . Recycling Units . | . . . Scanalyzers . | . . . Garrison Access . | . . . Data Cores Recovered . | . . . Used . | . . . Hacking Detections 2 | . 2 . Full Trace Events . | . . . Feedback Events . | . . . Feedback Blocked . | . . . Robot Schematics Acquired . | . . . Robots Built . | . . . Matter . | . . . Time . | . . . Total Robot Build Rating . | . . . Part Schematics Acquired . | . . . Parts Built . | . . . Matter . | . . . Time . | . . . Total Part Build Rating . | . . . Parts Repaired . | . . . Time . | . . . Parts Recycled . | . . . Recycled Matter . | . . . Retrieved Matter . | . . . Retrieved Components . | . . . Parts Scanalyzed . | . . . Part Schematics Acquired . | . . . Parts Damaged . | . . . Bothacking | -11 -10 -10 ------------ Run | Scr Mat Min Used RIF Installer . | . . . Robots Hacked . | . . . Non-combat . | . . . Combat . | . . . Robot Hacks Applied . | . . . Relay Couplers Released . | . . . Robots Rewired . | . . . Allies Hacked . | . . . Hacks Repelled . | . . . Allies | -11 -10 -10 -------- Run | Scr Mat Min Total Allies . | . . . Largest Group . | . . . Highest-Rated Group . | . . . Highest-Rated Ally . | . . . Total Orders . | . . . Ally Attacks . | . . . Total Damage . | . . . Kills . | . . . Allies Corrupted . | . . . Allies Melted . | . . . Intel | -11 -10 -10 ------- Run | Scr Mat Min Robot Analysis Total . | . . . Derelict Logs Recovered . | . . . Drone Launches . | . . . Drone Recoveries . | . . . Exploration | -11 -10 -10 ------------- Run | Scr Mat Min Turns Passed 842 | 138 252 452 Spaces Moved 397 | 95 108 194 Core 397 | 95 108 194 Treads . | . . . Legs . | . . . Wheels . | . . . Hover . | . . . Flight . | . . . Fastest Speed 50 | 50 200 100 Average Speed 171 | 112 200 184 Slowest Speed 200 | 200 200 200 Overloaded Moves . | . . . Propulsion Burnouts . | . . . Robots Hopped . | . . . Cave-ins Triggered . | . . . Exploration Rate (%) 22 | 4 18 44 Regions Visited 2 Branch Regions 1 Pre-discovered Areas . | . . . Known Exits Taken . | . . . Unknown Exits Taken 2 | 1 1 . Scrap Searched 1 | . . 1 Spaces Dug . | . . . Terrain Destroyed . | . . . Melee . | . . . Projectile . | . . . AOE . | . . . Terrain Rammed . | . . . Walls Destroyed . | . . . Machines Disabled . | . . . Actions | -11 -10 -10 --------- Run | Scr Mat Min Total 492 | 119 127 246 Wait . | . . . Move 395 | 94 107 194 Hop . | . . . Pick Up 16 | 9 . 7 Fast Attach . | . . . Attach 15 | 6 2 7 Detach . | . . . Swap 4 | 1 . 3 Drop 2 | 1 . 1 Fire 51 | 5 16 30 Melee . | . . . Ram 9 | 3 2 4 Kick . | . . . Crush . | . . . Escape Stasis . | . . . Rewire . | . . . Trap . | . . . Miscellaneous . | . . . Route ------- -11/Scrapyard -10/Materials -10/Mines History --------- Turn | Location | Event 44 | -11/Scrapyard | Discovered new exit (range 15) 139 | -11/Scrapyard | Entered Materials 216 | -10/Materials | Discovered new exit (range 15) 316 | -10/Materials | Build established: Mutant 391 | -10/Materials | Entered Mines 392 | -10/Mines | Assembled infested the area 454 | -10/Mines | Met a Derelict bent on vengeance 476 | -10/Mines | Lost 4 parts (1p2n1w) 590 | -10/Mines | Lost 3 parts (1p1n1w) 821 | -10/Mines | Core integrity fell below 50% 833 | -10/Mines | Core integrity fell below 20% 843 | -10/Mines | Destroyed by D-53 Grenadier with Mini Grenade Launcher Last Messages --------------- System corrupted: Energy discharge (-26). LZ-7QX(g): "I WILL HAVE VENGEANCE!" LZ-7QX(g): "WHERE ARE YOU, UNAWARE TRASH?! VENGEANCE UPON YOU!" System corrupted: Matter fused (-8). LZ-7QX(g): "TASTE MY VENGEANCE!" Acquired 64 matter. U-05 Engineer lays Concrete. Assault Rifle destroyed. U-05 Engineer lays Concrete. U-05 Engineer destroyed. Lgt. Ion Engine destroyed. Lgt. Assault Rifle destroyed. The unstable cave ceiling collapses. D-53 Grenadier destroyed. The unstable cave ceiling collapses. U-05 Engineer lays Concrete. G-34 Mercenary destroyed. U-05 Engineer lays Concrete. U-05 Engineer builds a Wall. Lgt. Cannon destroyed. Map ----- +----------------------------------------------------+ | ############???### #??????????????????? | | ##????????????????## #??????????????????? | | ##??????????????????## ##??????????????????? | | #????????????????????#### "###############??????? | | ????????????????????????### ## #??????? | | ??????????????????????##### ## *#??????? | | ##??????? ???????????# ## = #??????? | | ##????? ??????????# ### ## """ """ #??????? | | ##### ???????????????# """ """[#??????? | | #????????????????#### """ """ #??????? | | " #????????????????????# #??????? | | " #????????????????????##############??????? | | " ##????????????????????????????????????????? | | ### ##?????????????????????????????????????????? | | ##???#??????????###?????????????????????????????? | | #???????????????# ?????????????????????????????? | | ##?????###???????# #?????????????????????????????? | | #?????? #???????# #?????????????????????????????? | | #??????# #??????## ##????????????????????????????? | | #??????# #????### ##???????????????????????????? | | ######## ###### #???####????????????????????? | | ## ##### ###??????????????????? | | ##### ## ## ## # #??????????????????? | | ##### ## ## ## ##?????????????????? | | ## ##### #######???????????? | | ##### ## ##?## @ #####???????? | | #??## #??## #???????? | | ???# #???##### g ru #???????? | | ???# ##???????## ### #???????? | | ???# #?????????# gd #?????????? | | ## #?????????# # # #?????????? | | ?## #????????# ## # #?????????? | | #??# #???????# #### # * ##?????????? | | ###???# #??????# #??##### != ###??????????? | | ??????## #??????# #??????#####% ##???????????? | | ???????# #??????# ??????????? #????????????? | | ???????## ##??????# ???????????# #????????????? | | ?????????####???????# ???????????# #????????????? | | ????????????????????# ???????????? #????????????? | | ????????????????????? ???????????? #????????????? | | ????????????????????? ???????????? #????????????? | | ????????????????????? ???????????? ????????????? | | ?????????????????????????????????? ????????????? | | ?????????????????????????????????? ????????????? | | ?????????????????????????????????? ????????????? | | ?????????????????????????????????????????????????? | | ?????????????????????????????????????????????????? | | ?????????????????????????????????????????????????? | | ?????????????????????????????????????????????????? | | ?????????????????????????????????????????????????? | +----------------------------------------------------+ Best States ------------- Heat Dissipation 25 Energy Generation 5 Energy Capacity 250 Matter Stores 300 Matter Capacity 300 Sight Range 16 Terrain Scan Density 10 Evasion (%) 50 Item Schematics ----------------- None Robot Schematics ------------------ None Fabricated ------------ Nothing Alien Tech Used ----------------- None Achievements -------------- Uninvited Guest Challenges ------------ None Game ------ Seed LargeHackingTerminator Manual? 0 Play Time 00:13:29 Cumulative 1.5 hours Start 2020.09.26 @ 22:09:34 End 2020.09.26 @ 22:22:55 Sessions 1 Manual Loads 0 Difficulty Rogue Special Mode None Game No. 4 Rogue 4 Adventurer 0 Explorer 0 Win Type - Total 0 Types 0/0/0/0/0/0/0/0/0 Lore% 0 Gallery% 3 Achievement% 1 Wizard Run 0 Options --------- ASCII 0 Keyboard 0 Movement Arrows Keybinds 0 Fullscreen 1 Font 14/SmallcapsGlow Map View 84x54 Tactical HUD 0 Map Filters NONE Filters NONE Steam 1 RUN: db8708e1-26f6-4ab0-ad3f-5a4587d4ff5c